bitfinex-derivatives/quotes_SOLF0:USTF0_20241218
["timestamp","ask_amount","ask_price","bid_price","bid_amount"]
[1734517256839,7.22751622,216.48,216.44,2.3104]
[1734517257239,7.22751622,216.48,216.4,9.42751622]
[1734517257838,2.2,216.52,216.4,9.42751622]
[1734517258043,2.2,216.52,216.47,2.3101]
[1734517258044,7.22751622,216.49,216.47,2.3101]
[1734517258238,2.2,216.52,216.45,7.22751622]
[1734517258443,7.22751622,216.52,216.48,2.31]
[1734517258648,7.22751622,216.5,216.38,5.6552916]
[1734517258840,7.22751622,216.5,216.42,7.22751622]
[1734517259443,7.22751622,216.5,216.46,2.3102]
[1734517259644,7.22751622,216.48,216.46,2.3102]
[1734517260045,7.22751622,216.48,216.37,3.0809]
[1734517260251,7.22751622,216.45,216.37,3.0809]
[1734517260747,7.22751622,216.45,216.41,2.3107]
[1734517260947,7.22751622,216.43,216.37,3.0809]
[1734517262048,9.42751622,216.43,216.37,3.0809]
[1734517262351,7.22751622,216.42,216.37,3.0809]
[1734517263451,7.22751622,216.42,216.39,2.311]
[1734517264244,7.22751622,216.42,216.33,2.2]
[1734517264449,2.3108,216.41,216.33,9.42751622]
[1734517265152,2.3108,216.41,216.35,2.3114]
[1734517265344,2.3108,216.41,216.33,9.42751622]
[1734517265852,9.53841622,216.4,216.33,7.22751622]
[1734517266942,7.22751622,216.38,216.3,11.78171622]
[1734517267146,7.22751622,216.36,216.3,3.0935]
[1734517267547,2.3114,216.35,216.31,2.3118]
[1734517267749,7.22751622,216.36,216.31,2.3118]
[1734517268252,9.53881622,216.36,216.31,2.3118]
[1734517269849,7.22751622,216.36,216.28,7.22751622]
[1734517270053,2.3117,216.33,216.29,2.312]
[1734517270448,7.22751622,216.32,216.29,2.312]
[1734517270952,9.42751622,216.32,216.29,2.312]
[1734517271653,9.42751622,216.32,216.24,7.22751622]
[1734517272048,7.22751622,216.3,216.24,7.22751622]
[1734517272254,7.22751622,216.28,216.21,2.9183]
[1734517272450,2.2,216.27,216.21,2.9183]
[1734517273046,4.5124,216.27,216.23,2.3127]
[1734517276058,2.2,216.29,216.24,7.22751622]
[1734517276856,2.2,216.29,216.26,2.3123]
[1734517279359,2.2,216.29,216.25,2.3125]
[1734517280668,2.2,216.29,216.22,7.22751622]
[1734517281262,2.2,216.29,216.26,2.3124]
[1734517283466,4.5121,216.29,216.26,2.3124]
[1734517283969,2.2,216.29,216.26,2.3124]
[1734517284763,2.2,216.29,216.24,7.22751622]
[1734517284963,2.2,216.29,216.27,2.3123]
[1734517287970,2.2,216.29,216.22,7.22751622]
[1734517288166,4.5121,216.29,216.26,2.3124]
[1734517291569,2.3126,216.25,216.15,2.2]
[1734517291767,2.3126,216.25,216.18,7.22751622]
[1734517292171,2.3126,216.25,216.15,2.2]
[1734517292367,2.3126,216.25,216.19,7.22751622]
[1734517292873,2.2,216.29,216.24,2.3126]
[1734517293573,2.2,216.29,216.21,7.22751622]
[1734517293769,2.2,216.29,216.25,2.3124]
[1734517294181,4.5122,216.29,216.25,2.3124]
[1734517294680,9.53971622,216.28,216.25,2.3124]
[1734517294875,2.3122,216.28,216.25,2.3124]
[1734517295783,9.42751622,216.29,216.21,7.22751622]
[1734517296078,11.73961622,216.29,216.26,2.3124]
[1734517296478,2.2,216.28,216.26,2.3124]
[1734517297476,4.5122,216.28,216.26,2.3124]
[1734517299086,2.2,216.28,216.26,2.3124]
[1734517309792,7.22751622,216.27,216.06,153.69713937]
[1734517309987,2.2,216.28,216.12,11.88441622]
[1734517309988,7.22751622,216.22,216.12,11.88441622]
[1734517310195,7.22751622,216.17,216.09,5.56391616]
[1734517310389,2.16,216.16,216.09,8.73301616]
[1734517310592,2.16,216.16,216.09,3.1691]
[1734517310900,2.16,216.19,216.12,7.22751622]
[1734517311193,7.22751622,216.2,216.16,2.3134]
[1734517312194,2.3131,216.2,216.15,2.3135]
[1734517312400,2.3131,216.2,216.12,7.22751622]
[1734517314503,2.3131,216.2,216.15,2.3135]
[1734517314703,2.3134,216.17,216.09,3.1691]
[1734517314905,2.16,216.16,216.09,3.1691]
[1734517315299,2.3136,216.15,216.11,2.314]
[1734517317306,4.4735,216.16,216.11,2.314]
[1734517318710,2.3137,216.14,216.09,5.4832]
[1734517319305,2.3137,216.14,216.09,3.1691]
[1734517319608,7.22751622,216.13,216.1,2.3141]
[1734517321807,7.22751622,216.13,216.11,2.314]
[1734517322604,7.22751622,216.13,215.99,4.6523]
[1734517322804,2.16,216.14,216.02,7.22751622]
[1734517322805,7.22751622,216.1,216.02,7.22751622]
[1734517323009,2.16,216.09,216.02,7.22751622]
[1734517323410,4.4742,216.09,216.05,2.3146]
[1734517323605,2.16,216.09,216.02,7.22751622]
[1734517323801,2.16,216.09,216.07,2.3144]
[1734517324212,2.16,216.09,215.99,4.6523]
[1734517324608,2.16,216.09,216.02,7.22751622]
[1734517324609,4.4743,216.09,216.02,7.22751622]
[1734517325112,27.78,216.22,216.06,7.22751622]
[1734517325113,5.62134907,216.15,216.06,7.22751622]
[1734517325309,5.62134907,216.15,216.1,7.22751622]
[1734517325310,2.16,216.15,216.1,7.22751622]
[1734517325710,2.16,216.15,216.13,2.3138]
[1734517326713,2.16,216.15,216.12,2.3139]
[1734517327409,4.4735,216.16,216.13,2.3138]
[1734517327716,7.22751622,216.15,216.13,2.3138]
[1734517328111,2.16,216.16,216.13,2.3138]
[1734517328707,7.22751622,216.15,216.13,2.3138]
[1734517329915,7.22751622,216.15,216.08,7.22751622]
[1734517330515,7.22751622,216.15,216.1,2.3141]
[1734517330715,7.22751622,216.15,216.08,7.22751622]
[1734517331117,7.22751622,216.15,216.12,2.3138]
[1734517333519,7.22751622,216.15,216.09,3.0494]
[1734517333719,7.22751622,216.15,216.13,2.3138]
[1734517335015,11.68091622,216.17,216.14,2.3136]
[1734517335212,7.22751622,216.15,216.14,2.3136]
[1734517335515,2.3141,216.1,216.05,2.3145]
[1734517335718,9.36751622,216.1,216.03,7.22751622]
[1734517336024,9.36751622,216.1,216.04,3.009]
[1734517336216,2.14,216.11,216.07,2.3144]
[1734517336416,2.14,216.11,216.04,3.009]
[1734517336618,2.14,216.15,216.07,7.22751622]
[1734517336818,7.22751622,216.14,216.1,2.3139]
[1734517337216,7.22751622,216.14,216.07,7.22751622]
[1734517338619,9.54121622,216.14,216.09,2.3141]
[1734517340219,7.22751622,216.14,215.78,255.28467433]
[1734517340425,7.22751622,216.06,215.99,7.22751622]
[1734517341022,2.14,216.07,216.01,7.22751622]
[1734517341625,2.14,216.07,216.04,2.3147]
[1734517343122,2.14,216.07,216.02,3.1038]
[1734517343420,2.14,216.1,216.03,7.22751622]
[1734517343622,9.36751622,216.1,216.06,2.3144]
[1734517343927,2.14,216.1,216.05,7.22751622]
[1734517344122,2.14,216.13,216.05,7.22751622]
[1734517345229,2.3139,216.12,216.07,2.3143]
[1734517346725,9.54141622,216.12,216.07,2.3143]
[1734517347326,2.314,216.11,216.07,2.3143]
[1734517348928,2.314,216.11,216.05,7.22751622]
[1734517349128,2.314,216.11,216.08,2.3142]
[1734517351232,9.54151622,216.11,216.08,2.3142]
[1734517354231,9.54151622,216.11,216.07,2.3143]
[1734517354429,9.54171622,216.09,216.02,10.33131622]
[1734517354828,7.22751622,216.09,216.05,2.3145]
[1734517355034,7.22751622,216.07,216.02,3.1038]
[1734517356535,7.22751622,216.07,216.04,2.3147]
[1734517357138,7.22751622,216.07,216.02,3.1038]
[1734517358138,7.22751622,216.07,215.99,8.83051622]
[1734517358337,2.14,216.08,215.99,11.91231622]
[1734517358537,2.3145,216.06,215.99,11.91231622]
[1734517359036,2.3145,216.06,216.01,7.22751622]
[1734517359239,2.3145,216.06,216.02,2.3148]
[1734517359839,9.36751622,216.08,216.03,2.3148]
[1734517359840,11.68191622,216.08,216.03,2.3148]
[1734517360033,5.51059636,216.18,216.01,7.22751622]
[1734517360237,7.22751622,216.1,216.03,7.22751622]
[1734517360436,2.16,216.09,216.05,7.22751622]
[1734517360645,2.16,216.1,216.05,7.22751622]
[1734517361541,2.16,216.1,216.07,2.3143]
[1734517362048,9.38751622,216.11,216.07,2.3143]
[1734517362947,11.70151622,216.11,216.07,2.3143]
[1734517363148,11.70151622,216.11,216.04,2.3146]
[1734517363149,7.22751622,216.09,216.04,2.3146]
[1734517363443,9.54171622,216.09,216.04,2.3146]
[1734517363653,7.22751622,216.07,215.99,4.6848]
[1734517363846,7.22751622,216.05,216.02,2.3148]
[1734517364043,9.38751622,216.05,216.02,2.3148]
[1734517364247,7.22751622,216.03,215.98,2.3152]
[1734517364447,7.22751622,216.03,215.97,12.78269046]
[1734517364950,7.22751622,216.03,216.0,2.3151]
[1734517365751,7.22751622,216.03,215.98,2.3152]
[1734517366052,7.22751622,216.03,215.97,7.22751622]
[1734517366553,9.38751622,216.05,215.97,7.22751622]
[1734517366942,2.16,216.05,215.99,7.22751622]
[1734517368554,4.4746,216.05,216.01,2.315]
[1734517372048,9.54221622,216.04,216.0,2.3151]
[1734517373756,7.22751622,216.04,215.93,2.16]
[1734517373957,2.3149,216.03,215.96,7.22751622]
[1734517375661,2.3149,216.03,215.99,2.3152]
[1734517376556,7.22751622,216.02,215.99,2.3152]
[1734517376756,2.16,216.01,215.99,2.3152]
[1734517378459,7.22751622,216.0,215.92,4.4532]
[1734517378664,9.54261622,216.0,215.96,2.3155]
[1734517379762,9.54261622,216.0,215.97,2.3154]
[1734517379963,7.22751622,216.0,215.97,2.3154]
[1734517381362,9.54261622,216.0,215.97,2.3154]
[1734517383060,7.22751622,215.98,215.84,4.6336]
[1734517383264,19.34837543,216.07,215.86,7.22751622]
[1734517383265,7.22751622,215.94,215.86,7.22751622]
[1734517383462,2.16,215.93,215.86,7.22751622]
[1734517383663,2.16,215.93,215.91,2.316]
[1734517383863,2.16,215.93,215.87,5.44432477]
[1734517384157,4.4759,215.93,215.89,2.3163]
[1734517384361,7.22751622,215.92,215.87,5.44432477]
[1734517384561,7.22751622,215.92,215.85,7.22751622]
[1734517384763,2.3161,215.91,215.87,2.3164]
[1734517387163,2.16,215.89,215.86,2.3166]
[1734517387872,2.3156,215.96,215.89,2.3162]
[1734517388162,69.67027404,215.99,215.89,2.3162]
[1734517388163,7.22751622,215.94,215.89,2.3162]
[1734517388365,2.16,215.93,215.89,2.3162]
[1734517389161,2.16,215.93,215.86,7.22751622]
[1734517390971,2.16,215.93,215.91,2.316]
[1734517392768,2.16,215.93,215.92,2.316]
[1734517393769,7.22751622,215.95,215.88,7.22751622]
[1734517393969,2.14,215.98,215.96,2.3154]
[1734517394170,7.22751622,215.98,215.96,2.3154]
[1734517398679,7.22751622,215.98,215.97,2.3154]
[1734517399180,7.22751622,215.98,215.91,1.5596]
[1734517399375,2.14,215.99,215.96,2.3155]
[1734517401177,2.14,215.99,215.96,2.3154]
[1734517401578,2.14,215.99,215.91,7.21272705]
[1734517401881,7.22751622,215.98,215.91,7.21272705]
[1734517402978,7.22751622,215.98,215.97,2.3154]
[1734517403377,7.22751622,215.98,215.95,2.3156]
[1734517403679,7.22751622,215.96,215.91,7.21272705]
[1734517403978,7.22751622,215.98,215.91,7.21272705]
[1734517404181,7.22751622,215.98,215.91,5.65312705]
[1734517404380,7.22751622,215.98,215.96,2.3154]
[1734517404577,7.22751622,215.98,215.91,5.65312705]
[1734517405177,7.22751622,215.98,215.97,2.3154]
[1734517405481,7.22751622,216.0,215.92,8.68501622]
[1734517405671,52.96,216.07,215.96,7.22751622]
[1734517405872,7.22751622,216.04,215.96,7.22751622]
[1734517406081,2.14,216.06,215.98,7.22751622]
[1734517406279,9.36751622,216.06,216.04,2.3146]
[1734517406677,9.36751622,216.06,216.05,2.3146]
[1734517407076,9.36751622,216.06,216.0,7.22751622]
[1734517407273,13.89,216.2,216.06,2.3144]
[1734517407274,2.3139,216.12,216.06,2.3144]
[1734517407476,7.22751622,216.09,216.06,2.3144]
[1734517409887,7.22751622,216.07,216.04,2.3146]
[1734517410084,7.22751622,216.05,215.97,3.6335]
[1734517410289,7.22751622,216.05,215.98,1.5464]
[1734517410489,7.22751622,216.03,216.01,2.3149]
[1734517412786,7.22751622,216.03,215.98,1.5464]
[1734517412979,7.22751622,216.03,216.0,2.3151]
[1734517413181,9.36751622,216.03,216.0,2.3151]
[1734517413681,9.36751622,216.03,215.98,3.8616]
[1734517414390,9.36751622,216.03,215.99,2.3152]
[1734517418082,2.14,216.03,215.98,1.5464]
[1734517418290,2.14,216.03,216.02,2.3149]
[1734517423485,9.32751622,216.05,216.02,2.3149]
[1734517424392,2.1,216.05,216.0,7.22751622]
[1734517424995,9.32751622,216.08,216.0,7.22751622]
[1734517425489,9.32751622,216.08,216.04,2.3147]
[1734517425695,7.22751622,216.08,216.04,2.3147]
[1734517425892,9.32751622,216.08,216.04,2.3147]
[1734517426093,2.1,216.08,216.05,2.3146]
[1734517426599,2.1,216.08,216.02,7.22751622]
[1734517427290,2.1,216.08,216.06,2.3144]
[1734517427699,11.64151622,216.11,216.06,2.3144]
[1734517427902,2.1,216.11,216.06,7.22751622]
[1734517428600,2.1,216.11,216.09,2.3141]
[1734517430403,2.1,216.11,216.1,2.314]
[1734517430704,9.32751622,216.13,216.1,2.314]
[1734517433813,2.3136,216.14,216.06,7.22751622]
[1734517434114,4.4136,216.14,216.11,2.3139]
[1734517434613,2.1,216.14,216.08,7.22751622]
[1734517434811,4.4135,216.16,216.13,2.3137]
[1734517435316,2.3135,216.16,216.13,2.3137]
[1734517435505,4.4135,216.16,216.13,2.3137]
[1734517436313,4.4135,216.16,216.12,2.3138]
[1734517436514,4.4135,216.16,216.1,7.22751622]
[1734517438317,4.4135,216.16,216.12,2.3137]
[1734517439214,7.22751622,216.14,216.12,2.3137]
[1734517441113,7.22751622,216.14,216.06,3.0061]
[1734517441317,7.22751622,216.12,216.06,3.0061]
[1734517443416,7.22751622,216.12,216.09,2.3141]
[1734517443820,2.3138,216.13,216.09,2.3141]
[1734517446821,2.3138,216.13,216.1,2.314]
[1734517450728,9.54111622,216.14,216.1,2.314]
[1734517451029,9.32751622,216.16,216.09,7.22751622]
[1734517451725,2.1,216.16,216.09,7.22751622]
[1734517451920,4.4135,216.16,216.12,2.3137]
[1734517455332,4.4135,216.16,216.09,7.22751622]
[1734517455627,4.4135,216.16,216.13,2.3137]
[1734517456229,2.06,216.17,216.11,7.22751622]
[1734517456430,2.06,216.18,216.13,7.22751622]
[1734517456627,2.06,216.19,216.13,7.22751622]
[1734517456828,4.3731,216.19,216.13,7.22751622]
[1734517457731,2.06,216.2,216.15,7.22751622]
[1734517458129,2.06,216.22,216.17,7.22751622]
[1734517458324,2.3127,216.23,216.17,7.22751622]
[1734517458523,2.3127,216.23,216.2,2.3129]
[1734517458524,4.3727,216.23,216.2,2.3129]
[1734517458726,11.60011622,216.24,216.17,7.22751622]
[1734517459128,2.06,216.24,216.17,7.22751622]
[1734517459325,2.06,216.24,216.19,7.22751622]
[1734517460525,7.22751622,216.25,216.19,7.22751622]
[1734517460724,9.28751622,216.25,216.19,7.22751622]
[1734517461023,9.28751622,216.25,216.22,2.3127]
[1734517461530,4.3723,216.27,216.19,7.22751622]
[1734517461731,11.59981622,216.27,216.19,7.22751622]
[1734517462632,11.59981622,216.27,216.21,7.22751622]
[1734517463728,11.59981622,216.27,216.15,3.0755]
[1734517463729,192.23861048,216.39,216.25,7.22751622]
[1734517463926,7.22751622,216.36,216.29,7.22751622]
[1734517464125,7.22751622,216.34,216.29,2.3119]
[1734517464331,2.3117,216.33,216.26,7.22751622]
[1734517464630,2.06,216.32,216.26,7.22751622]
[1734517465526,2.06,216.32,216.28,2.3121]
[1734517467737,2.06,216.32,216.28,7.22751622]
[1734517468035,2.06,216.35,216.3,7.22751622]
[1734517468336,2.06,216.36,216.32,7.22751622]
[1734517468535,66.81,216.48,216.32,7.22751622]
[1734517468741,66.81,216.48,216.26,2.06]
[1734517468742,7.22751622,216.41,216.34,9.53891622]
[1734517468936,52.92,216.48,216.34,2.3114]
[1734517468937,2.3111,216.38,216.34,2.3114]
[1734517469142,2.3111,216.38,216.32,7.22751622]
[1734517469640,2.3111,216.38,216.33,2.3116]
[1734517469838,2.06,216.37,216.33,2.3116]
[1734517470435,2.06,216.37,216.32,7.22751622]
[1734517472443,7.22751622,216.35,216.24,4.7525]
[1734517472742,7.22751622,216.35,216.27,7.22751622]
[1734517472943,2.3117,216.32,216.25,7.22751622]
[1734517473237,2.06,216.32,216.27,7.22751622]
[1734517474242,2.06,216.32,216.28,2.312]
[1734517474942,2.06,216.32,216.28,9.53951622]
[1734517475135,2.06,216.32,216.28,2.312]
[1734517475738,2.06,216.32,216.29,7.22751622]
[1734517478351,4.3717,216.32,216.29,7.22751622]
[1734517479045,2.06,216.32,216.24,4.7525]
[1734517479244,2.06,216.32,216.25,7.22751622]
[1734517479548,2.3119,216.3,216.26,2.3122]
[1734517479745,2.3119,216.3,216.25,7.22751622]
[1734517480546,2.3119,216.3,216.27,2.3122]
[1734517481146,2.06,216.32,216.27,2.3122]
[1734517481348,2.3118,216.31,216.27,2.3122]
[1734517481741,2.3123,216.27,216.24,3.2037]
[1734517484150,2.06,216.28,216.25,7.22751622]
[1734517484445,2.06,216.31,216.27,7.22751622]
[1734517485550,4.3718,216.31,216.27,9.53971622]
[1734517486741,2.06,216.31,216.25,7.22751622]
[1734517486942,2.06,216.31,216.25,9.53981622]
[1734517487951,2.3121,216.29,216.25,9.53981622]
[1734517491348,2.3121,216.28,216.24,5.5162]
[1734517491554,2.3121,216.28,216.24,10.43121622]
[1734517492554,2.3121,216.28,216.25,2.3124]
[1734517495865,9.28751622,216.31,216.25,2.3124]
[1734517496068,2.312,216.29,216.25,2.3124]
[1734517496258,2.312,216.29,216.26,7.22751622]
[1734517497669,4.372,216.29,216.26,7.22751622]
[1734517498561,4.372,216.29,216.26,9.53981622]
[1734517500371,13.89,216.43,216.28,7.22751622]
[1734517500667,7.22751622,216.37,216.3,7.22751622]
[1734517500970,2.3116,216.34,216.3,7.22751622]
[1734517501367,2.3116,216.34,216.3,9.53941622]
[1734517501670,7.50428973,216.36,216.3,2.3119]
[1734517501872,2.3116,216.33,216.3,2.3119]
[1734517502069,2.06,216.32,216.3,2.3119]
[1734517505267,7.22751622,216.39,216.3,7.22751622]
[1734517505467,7.22751622,216.39,216.35,7.22751622]
[1734517505468,2.06,216.39,216.35,7.22751622]
[1734517505875,4.371,216.39,216.35,9.53881622]
[1734517506081,2.06,216.39,216.35,7.22751622]
[1734517506273,2.06,216.39,216.37,7.22751622]
[1734517506772,139.64142085,216.48,216.4,2.3108]
[1734517506773,2.06,216.41,216.4,2.3108]
[1734517507276,2.06,216.42,216.4,2.3108]
[1734517507476,2.06,216.42,216.39,2.3109]
[1734517507871,2.06,216.42,216.37,7.22751622]
[1734517509170,7.22751622,216.45,216.37,7.22751622]
[1734517509376,2.06,216.43,216.37,7.22751622]
[1734517509577,2.06,216.43,216.39,7.22751622]
[1734517510578,2.06,216.43,216.4,2.3108]
[1734517511783,12.77425668,216.47,216.39,7.22751622]
[1734517511981,2.04,216.46,216.41,2.3106]
[1734517512381,2.3103,216.45,216.39,7.22751622]
[1734517512579,2.04,216.46,216.42,2.3106]
[1734517513182,2.04,216.45,216.43,2.3104]
[1734517514284,2.3101,216.47,216.43,2.3104]
[1734517514485,2.31,216.49,216.43,7.22751622]
[1734517514687,2.04,216.48,216.43,7.22751622]
[1734517515083,2.04,216.48,216.46,2.3102]
[1734517515585,86.70292038,216.52,216.45,7.22751622]
[1734517515586,86.70292038,216.52,216.48,2.31]
[1734517515786,86.70292038,216.52,216.47,7.22751622]
[1734517515986,88.74292038,216.52,216.47,7.22751622]
[1734517516989,2.3097,216.51,216.47,9.53751622]
[1734517518696,88.74292038,216.52,216.41,3.0716]
[1734517518697,7.22751622,216.5,216.41,3.0716]
[1734517518994,7.22751622,216.5,216.43,2.3105]
[1734517518995,2.3101,216.47,216.43,2.3105]
[1734517519189,4.3501,216.47,216.43,2.3105]
[1734517520791,2.04,216.47,216.42,7.22751622]
[1734517520999,2.04,216.5,216.46,7.22751622]
[1734517521295,2.04,216.53,216.49,7.22751622]
[1734517521596,2.04,216.53,216.49,9.53741622]
[1734517521993,2.04,216.53,216.5,2.3098]
[1734517524198,4.3494,216.54,216.5,2.3098]
[1734517526591,2.3096,216.52,216.48,2.3099]
[1734517526898,7.22751622,216.53,216.47,7.22751622]
[1734517527197,2.31,216.48,216.44,2.3104]
[1734517527396,4.35,216.48,216.44,2.3104]
[1734517529400,5.47238304,216.57,216.45,7.22751622]
[1734517529401,2.04,216.51,216.45,7.22751622]
[1734517530502,2.3098,216.5,216.47,2.31]
[1734517532699,2.3102,216.46,216.42,9.53801622]
[1734517533803,2.3104,216.44,216.41,1.5908]
[1734517535499,2.3104,216.44,216.41,3.9015]
[1734517539404,7.22751622,216.46,216.42,2.3106]
[1734517539405,2.3103,216.46,216.42,2.3106]
[1734517539611,9.26751622,216.47,216.41,1.5908]
[1734517540100,7.22751622,216.42,216.23,69.78571945]
[1734517540307,7.22751622,216.4,216.29,3.0133]
[1734517540506,2.3113,216.36,216.33,9.53911622]
[1734517541103,2.3112,216.37,216.33,9.53911622]
[1734517541704,2.3112,216.37,216.34,2.3115]
[1734517543203,2.3112,216.37,216.33,9.53911622]
[1734517543606,2.3112,216.37,216.34,4.74330876]
[1734517543805,2.3112,216.37,216.33,9.53911622]
[1734517544606,2.3112,216.37,216.34,4.74574971]
[1734517545114,2.3112,216.37,216.33,9.53911622]
[1734517545315,2.3112,216.37,216.34,4.7460793]
[1734517545812,2.3112,216.37,216.33,9.53911622]
[1734517546015,2.3112,216.37,216.34,4.74802223]
[1734517546214,2.3112,216.37,216.33,9.53911622]
[1734517546614,2.3112,216.37,216.34,4.74828276]
[1734517546920,2.3112,216.37,216.34,2.3115]
[1734517547819,2.3112,216.37,216.33,7.22751622]
[1734517548019,2.3112,216.37,216.33,9.53911622]
[1734517548812,2.3112,216.37,216.34,2.3115]
[1734517550923,2.04,216.39,216.33,7.22751622]
[1734517551224,2.3114,216.36,216.33,7.22751622]
[1734517551417,2.3114,216.36,216.29,3.0133]
[1734517551612,2.3114,216.36,216.33,2.3116]
[1734517552121,2.3114,216.36,216.31,7.22751622]
[1734517552318,2.3114,216.36,216.32,2.3117]
[1734517553220,2.04,216.35,216.32,2.3117]
[1734517554017,2.04,216.35,216.31,7.22751622]
[1734517554224,2.3116,216.33,216.3,2.3119]
[1734517555520,2.3116,216.33,216.29,5.3253]
[1734517557325,2.3117,216.32,216.29,5.3253]
[1734517558624,2.3116,216.33,216.29,5.3253]
[1734517561017,7.22751622,216.3,216.25,2.3124]
[1734517561222,2.04,216.29,216.21,2.9506]
[1734517561420,2.04,216.29,216.23,7.22751622]
[1734517562017,2.04,216.29,216.26,2.3123]
[1734517562420,2.04,216.29,216.22,2.3127]
[1734517562421,2.3124,216.26,216.22,2.3127]
[1734517562928,7.22751622,216.28,216.22,7.22751622]
[1734517563925,9.53971622,216.28,216.24,2.3125]
[1734517564532,2.04,216.28,216.26,2.3123]
[1734517566924,2.04,216.28,216.27,2.3122]
[1734517570524,9.26751622,216.28,216.22,1.4766]
[1734517571128,9.26751622,216.28,216.24,2.3125]
[1734517571129,2.3122,216.27,216.24,2.3125]
[1734517571531,2.3122,216.27,216.22,1.4766]
[1734517571733,9.26751622,216.28,216.25,2.3124]
[1734517571734,11.57961622,216.28,216.25,2.3124]
[1734517572634,2.3122,216.27,216.24,2.3125]
[1734517580538,7.22751622,216.26,216.24,2.3125]
[1734517581136,7.22751622,216.26,216.22,1.4766]
[1734517581137,2.04,216.28,216.22,1.4766]
[1734517581337,18.512,216.39,216.22,1.4766]
[1734517581338,2.04,216.29,216.23,11.9791513]
[1734517581538,2.04,216.29,216.24,4.75163508]
[1734517581738,2.04,216.29,216.23,7.22751622]
[1734517582142,2.04,216.29,216.24,4.75315456]
[1734517582435,2.04,216.29,216.28,2.3121]
[1734517583640,9.26751622,216.29,216.27,2.3122]
[1734517584241,11.57961622,216.29,216.26,2.3123]
[1734517584547,7.22751622,216.27,216.26,2.3123]
[1734517584937,7.22751622,216.27,216.22,1.4766]
[1734517585133,2.04,216.29,216.23,4.7610348]
[1734517585134,7.22751622,216.25,216.23,4.7610348]
[1734517585338,7.22751622,216.25,216.24,4.7610348]
[1734517587542,9.53991622,216.25,216.24,4.7610348]
[1734517587743,7.22751622,216.25,216.24,4.7610348]
[1734517588642,7.22751622,216.27,216.24,4.7610348]
[1734517589038,9.53981622,216.27,216.22,2.3127]
[1734517589344,9.53981622,216.27,216.23,4.76476608]
[1734517589545,9.53981622,216.27,216.24,4.76476608]
[1734517589942,9.53981622,216.27,216.25,4.76476608]
[1734517590137,9.53981622,216.27,216.21,2.9506]
[1734517590443,9.53981622,216.27,216.24,2.3125]
[1734517590642,9.53981622,216.27,216.25,4.76565967]
[1734517590843,2.3123,216.26,216.21,2.9506]
[1734517591046,9.26751622,216.25,216.21,2.9506]
[1734517591245,9.26751622,216.25,216.22,4.76684569]
[1734517591445,11.58001622,216.25,216.23,4.76684569]
[1734517591646,11.58001622,216.25,216.24,4.76684569]
[1734517595443,22.1700664,216.25,216.16,3.06505528]
[1734517595650,6.45660499,216.24,216.18,7.22751622]
[1734517595852,17.04665517,216.23,216.18,7.22751622]
[1734517596041,17.04665517,216.22,216.18,12.78028526]
[1734517596247,17.04665517,216.21,216.18,12.78028526]
[1734517596446,10.59005018,216.2,216.18,12.78028526]
[1734517596643,10.59005018,216.19,216.18,5.55276904]
[1734517596945,10.59005018,216.19,216.18,7.86596904]
[1734517598451,16.80187108,216.19,216.18,7.86596904]
[1734517603453,9.26751622,216.25,216.17,7.22751622]
[1734517603655,9.26751622,216.25,216.18,4.7818766]
[1734517603856,9.26751622,216.25,216.19,4.7818766]
[1734517604056,9.26751622,216.25,216.22,2.3127]
[1734517604460,9.26751622,216.25,216.23,4.7818766]
[1734517604850,9.26751622,216.25,216.22,2.3127]
[1734517604851,9.26751622,216.25,216.24,4.7818766]
[1734517618476,11.57991622,216.25,216.24,4.7818766]
[1734517618873,9.26751622,216.25,216.24,4.7818766]
[1734517619872,9.26751622,216.25,216.18,5.6707619]
[1734517620177,7.22751622,216.23,216.19,4.784669]
[1734517620573,7.22751622,216.23,216.2,4.784669]
[1734517620972,7.22751622,216.23,216.21,4.784669]
[1734517621173,7.22751622,216.23,216.22,7.097469]